lending/lending_fUSD_20250131
["ID","MTS","AMOUNT","RATE_DAILY","PERIOD"]
[351134373,1738348245899,-1177.58,0.00017258,2]
[351134374,1738348245912,-500.0,0.00017258,2]
[351134375,1738348245921,-500.0,0.00017259,2]
[351134376,1738348245931,-294.80212523,0.00017259,2]
[351134377,1738348245940,-500.0,0.00017259,2]
[351134378,1738348245950,-500.0,0.00017259,2]
[351134379,1738348245959,-500.0,0.00017259,2]
[351134380,1738348245969,-500.0,0.00017259,2]
[351134381,1738348245978,-500.0,0.00017259,2]
[351134382,1738348245987,-500.0,0.00017259,2]
[351134383,1738348245996,-510.61,0.00017259,2]
[351134384,1738348246006,-500.0,0.00017259,2]
[351134385,1738348246015,-500.0,0.00017259,2]
[351134386,1738348246023,-500.0,0.00017259,2]
[351134387,1738348246032,-500.0,0.00017259,2]
[351134388,1738348246042,-500.0,0.00017259,2]
[351134389,1738348246051,-500.0,0.00017259,2]
[351134390,1738348246061,-500.0,0.00017259,2]
[351134391,1738348246071,-500.0,0.00017259,2]
[351134392,1738348246080,-154.00543317,0.00017259,2]
[351134393,1738348246089,-500.0,0.00017259,2]
[351134394,1738348246098,-500.0,0.00017259,2]
[351134395,1738348246107,-493.73389163,0.00017259,2]
[351134396,1738348246116,-500.0,0.00017259,2]
[351134397,1738348246126,-500.0,0.00017259,2]
[351134398,1738348246135,-417.37224715,0.00017259,2]
[351134399,1738348246144,-500.0,0.00017259,2]
[351134400,1738348246154,-500.0,0.00017259,2]
[351134401,1738348246167,-500.0,0.00017259,2]
[351134402,1738348246177,-506.20144382,0.00017259,2]
[351134403,1738348246186,-500.0,0.00017259,2]
[351134404,1738348246196,-500.0,0.00017259,2]
[351134405,1738348246205,-500.0,0.00017259,2]
[351134406,1738348246214,-500.0,0.00017259,2]
[351134407,1738348246223,-500.0,0.00017259,2]
[351134408,1738348246233,-500.0,0.00017259,2]
[351134410,1738348246242,-500.0,0.00017259,2]
[351134412,1738348246251,-500.0,0.00017259,2]
[351134414,1738348246261,-500.0,0.00017259,2]
[351134415,1738348246270,-500.0,0.00017259,2]
[351134416,1738348246279,-500.0,0.00017259,2]
[351134417,1738348246288,-500.0,0.00017259,2]
[351134418,1738348246298,-1455.79,0.0001726,2]
[351134419,1738348246307,-686.9,0.0001726,2]
[351134420,1738348246317,-500.0,0.0001726,2]
[351134421,1738348246328,-500.0,0.0001726,2]
[351134422,1738348246338,-2551.27,0.0001726,2]
[351134423,1738348246350,-1359.74,0.0001726,2]
[351134424,1738348246360,-3164.08,0.0001726,2]
[351134425,1738348246369,-1771.52,0.0001726,2]
[351134426,1738348246378,-500.0,0.0001726,2]
[351134427,1738348246387,-3352.95,0.0001726,2]
[351134428,1738348246397,-1723.08,0.0001726,2]
[351134429,1738348246409,-500.0,0.0001726,2]
[351134430,1738348246419,-904.61,0.0001726,2]
[351134431,1738348246428,-3205.13,0.0001726,2]
[351134432,1738348246437,-2877.99,0.0001726,2]
[351134433,1738348246447,-2087.9,0.0001726,2]
[351134434,1738348246457,-500.0,0.0001726,2]
[351134435,1738348246466,-500.0,0.0001726,2]
[351134436,1738348246475,-2031.19,0.0001726,2]
[351134437,1738348246485,-1464.79,0.0001726,2]
[351134438,1738348246499,-500.0,0.0001726,2]
[351134439,1738348246508,-588.218253,0.0001726,2]
[351134440,1738348246517,-7094.67,0.0001726,2]
[351134441,1738348246527,-846.73,0.0001726,2]
[351134442,1738348246537,-500.0,0.0001726,2]
[351134443,1738348246547,-1572.93,0.0001726,2]
[351134444,1738348246557,-1436.17,0.0001726,2]
[351134445,1738348246567,-3000.0,0.0001734,2]
[351134446,1738348246576,-18477.98655197,0.0001734,2]
[351134447,1738348246586,-1768.24521033,0.00017346,2]
[351134448,1738348246595,-171.85,0.00017374,2]
[351134449,1738348246605,-1153.16590249,0.00017383,2]
[351134450,1738348246614,-2184.12896969,0.0001739,3]
[351134451,1738348246623,-572.0789797,0.00017393,2]
[351134452,1738348246632,-500.0,0.00017393,2]
[351134453,1738348246641,-500.0,0.00017393,2]
[351134454,1738348246651,-500.0,0.00017393,2]
[351134455,1738348246664,-500.0,0.00017393,2]
[351134456,1738348246673,-500.0,0.00017393,2]
[351134457,1738348246682,-500.0,0.00017393,2]
[351134458,1738348246691,-500.0,0.00017393,2]
[351134459,1738348246700,-500.0,0.00017393,2]
[351134460,1738348246710,-500.0,0.00017393,2]
[351134461,1738348246720,-500.0,0.00017393,2]
[351134462,1738348246729,-500.0,0.00017393,2]
[351134463,1738348246741,-500.0,0.00017393,2]
[351134464,1738348246750,-155.15090582,0.00017393,2]
[351134465,1738348246760,-500.0,0.00017393,2]
[351134466,1738348246769,-500.0,0.00017393,2]
[351134467,1738348246779,-483.12530422,0.00017393,2]
[351134468,1738348246788,-500.0,0.00017393,2]
[351134469,1738348246798,-500.0,0.00017393,2]
[351134470,1738348246807,-500.0,0.00017393,2]
[351134471,1738348246817,-500.0,0.00017393,2]
[351134472,1738348246826,-500.0,0.00017393,2]
[351134473,1738348246835,-502.39205039,0.00017393,2]
[351134474,1738348246845,-500.0,0.00017393,2]
[351134475,1738348246854,-500.0,0.00017393,2]
[351134476,1738348246863,-500.0,0.00017393,2]
[351134477,1738348246872,-509.90513211,0.00017393,2]
[351134478,1738348246881,-500.0,0.00017393,2]
[351134479,1738348246891,-500.0,0.00017393,2]
[351134480,1738348246900,-500.0,0.00017393,2]
[351134481,1738348246911,-500.0,0.00017393,2]
[351134482,1738348246920,-500.0,0.00017393,2]
[351134483,1738348246929,-500.0,0.00017393,2]
[351134484,1738348246939,-500.0,0.00017393,2]
[351134485,1738348246948,-500.0,0.00017393,2]
[351134486,1738348246958,-500.0,0.00017393,2]
[351134487,1738348246968,-500.0,0.00017393,2]
[351134488,1738348246978,-500.0,0.00017393,2]
[351134489,1738348246988,-500.0,0.00017393,2]
[351134490,1738348246999,-204.82068201,0.00017393,2]
[351134491,1738348247009,-500.0,0.00017393,2]
[351134492,1738348247018,-500.0,0.00017393,2]
[351134493,1738348247028,-500.0,0.00017393,2]
[351134494,1738348247037,-516.59382353,0.00017393,2]
[351134495,1738348247047,-375.00913743,0.00017393,2]
[351134496,1738348247056,-500.0,0.00017393,2]
[351134497,1738348247065,-500.0,0.00017393,2]
[351134498,1738348247075,-507.81266776,0.00017393,2]
[351134499,1738348247084,-500.0,0.00017393,2]
[351134500,1738348247094,-500.0,0.00017393,2]
[351134501,1738348247103,-500.0,0.00017393,2]
[351134502,1738348247112,-500.0,0.00017393,2]
[351134503,1738348247122,-500.0,0.00017393,2]
[351134504,1738348247132,-538.50858149,0.00017393,2]
[351134505,1738348247141,-502.95473529,0.00017393,2]
[351134506,1738348247151,-500.0,0.00017393,2]
[351134507,1738348247163,-500.0,0.00017393,2]
[351134508,1738348247173,-500.0,0.00017393,2]
[351134509,1738348247182,-595.28929476,0.00017393,2]
[351134510,1738348247191,-500.0,0.00017393,2]
[351134511,1738348247200,-500.0,0.00017393,2]
[351134512,1738348247210,-500.0,0.00017393,2]
[351134513,1738348247219,-500.0,0.00017393,2]
[351134514,1738348247228,-500.0,0.00017393,2]
[351134515,1738348247238,-500.0,0.00017393,2]
[351134516,1738348247247,-500.0,0.00017393,2]
[351134517,1738348247256,-500.0,0.00017393,2]
[351134518,1738348247266,-500.0,0.00017393,2]
[351134519,1738348247276,-500.0,0.00017393,2]
[351134520,1738348247285,-268.9450196,0.00017393,2]
[351134521,1738348247294,-500.0,0.00017393,2]
[351134522,1738348247303,-500.0,0.00017393,2]
[351134523,1738348247312,-500.0,0.00017393,2]
[351134524,1738348247322,-500.0,0.00017393,2]
[351134525,1738348247331,-500.0,0.00017393,2]
[351134526,1738348247341,-500.0,0.00017393,2]
[351134527,1738348247351,-503.64428668,0.00017393,2]
[351134528,1738348247360,-500.0,0.00017393,2]
[351134529,1738348247369,-500.0,0.00017393,2]
[351134530,1738348247379,-500.0,0.00017393,2]
[351134531,1738348247389,-500.0,0.00017393,2]
[351134532,1738348247398,-500.0,0.00017393,2]
[351134533,1738348247411,-500.0,0.00017393,2]
[351134534,1738348247420,-500.0,0.00017393,2]
[351134535,1738348247429,-500.0,0.00017393,2]
[351134536,1738348247439,-500.0,0.00017393,2]
[351134537,1738348247448,-623.15000106,0.00017393,2]
[351134538,1738348247457,-500.0,0.00017393,2]
[351134539,1738348247467,-516.27831266,0.00017393,2]
[351134540,1738348247477,-786.06,0.00017393,2]
[351134541,1738348247487,-500.0,0.00017393,2]
[351134542,1738348247497,-500.0,0.00017393,2]
[351134543,1738348247508,-500.0,0.00017393,2]
[351134544,1738348247517,-500.0,0.00017393,2]
[351134545,1738348247527,-500.0,0.00017393,2]
[351134546,1738348247536,-500.0,0.00017393,2]
[351134547,1738348247547,-500.0,0.00017393,2]
[351134548,1738348247556,-500.0,0.00017393,2]
[351134549,1738348247566,-506.39062307,0.00017393,2]
[351134550,1738348247577,-500.0,0.00017393,2]
[351134551,1738348247587,-500.0,0.00017393,2]
[351134552,1738348247597,-500.0,0.00017393,2]
[351134553,1738348247607,-482.35801015,0.00017393,2]
[351134554,1738348247616,-744.03,0.00017393,2]
[351134555,1738348247626,-500.0,0.00017393,2]
[351134556,1738348247637,-1041.45,0.00017393,2]
[351134557,1738348247646,-500.0,0.00017393,2]
[351134558,1738348247656,-500.0,0.00017393,2]
[351134559,1738348247670,-679.36,0.00017393,2]
[351134560,1738348247680,-500.0,0.00017393,2]
[351134561,1738348247690,-639.49,0.00017393,2]
[351134562,1738348247700,-983.34,0.00017393,2]
[351134563,1738348247710,-853.27,0.00017393,2]
[351134564,1738348247720,-500.0,0.00017393,2]
[351134565,1738348247730,-2290.49,0.00017393,2]
[351134566,1738348247740,-15748.87,0.00017393,2]
[351134567,1738348247749,-1756.23,0.00017393,2]
[351134568,1738348247759,-5804.66,0.00017393,2]
[351134569,1738348247769,-1011.15,0.00017393,2]
[351134570,1738348247779,-500.0,0.00017393,2]
[351134571,1738348247789,-1398.05,0.00017393,2]
[351134572,1738348247802,-500.0,0.00017393,2]
[351134573,1738348247812,-500.0,0.00017393,2]
[351134574,1738348247822,-706.26,0.00017393,2]
[351134575,1738348247831,-500.0,0.00017393,2]
[351134576,1738348247841,-504.41612354,0.00017393,2]
[351134577,1738348247850,-500.0,0.00017393,2]
[351134578,1738348247860,-500.0,0.00017393,2]
[351134579,1738348247869,-1396.62,0.00017393,2]
[351134580,1738348247879,-500.0,0.00017393,2]
[351134581,1738348247889,-500.0,0.00017393,2]
[351134582,1738348247898,-500.0,0.00017393,2]
[351134583,1738348247912,-513.05127249,0.00017393,2]
[351134584,1738348247922,-1348.69,0.00017393,2]
[351134585,1738348247932,-500.0,0.00017393,2]
[351134586,1738348247942,-500.0,0.00017393,2]
[351134587,1738348247952,-500.0,0.00017393,2]
[351134588,1738348247961,-1000.0,0.00017393,2]
[351134589,1738348247972,-1491.37,0.00017393,2]
[351134590,1738348247982,-500.0,0.00017393,2]
[351134591,1738348247992,-513.57174288,0.00017393,2]
[351134592,1738348248002,-500.0,0.00017394,2]
[351134593,1738348248012,-500.0,0.00017394,2]
[351134594,1738348248021,-500.0,0.00017394,2]
[351134595,1738348248031,-500.0,0.00017394,2]
[351134596,1738348248040,-500.0,0.00017394,2]
[351134597,1738348248050,-500.0,0.00017394,2]
[351134598,1738348248059,-500.0,0.00017394,2]
[351134599,1738348248069,-592.09,0.00017394,2]
[351134600,1738348248079,-500.0,0.00017394,2]
[351134601,1738348248090,-541.54,0.00017394,2]
[351134602,1738348248099,-500.0,0.00017394,2]
[351134603,1738348248109,-661.57,0.00017394,2]
[351134604,1738348248119,-500.0,0.00017394,2]
[351134605,1738348248130,-500.0,0.00017394,2]
[351134606,1738348248139,-568.28,0.00017394,2]
[351134607,1738348248148,-500.0,0.00017394,2]
[351134608,1738348248158,-517.91,0.00017394,2]
[351134609,1738348248170,-500.0,0.00017394,2]
[351134610,1738348248180,-500.0,0.00017394,2]
[351134611,1738348248189,-500.0,0.00017394,2]
[351134612,1738348248199,-573.54,0.00017394,2]
[351134613,1738348248208,-500.0,0.00017394,2]
[351134614,1738348248218,-500.0,0.00017394,2]
[351134615,1738348248228,-730.37,0.00017394,2]
[351134616,1738348248238,-1026.2,0.00017394,2]
[351134617,1738348248248,-500.0,0.00017394,2]
[351134618,1738348248258,-536.25,0.00017394,2]
[351134619,1738348248268,-978.34,0.00017394,2]
[351134620,1738348248279,-1577.73,0.00017394,2]
[351134621,1738348248289,-500.0,0.00017394,7]
[351134622,1738348248299,-519.92,0.00017394,2]
[351134623,1738348248309,-932.35,0.00017394,2]
[351134624,1738348248319,-647.42,0.00017394,2]
[351134625,1738348248329,-286.106421,0.00017394,2]
[351134626,1738348248340,-2652.51,0.00017394,2]
[351134627,1738348248350,-500.0,0.00017394,2]
[351134628,1738348248360,-552.60280307,0.00017394,2]
[351134629,1738348248369,-551.45,0.00017394,2]
[351134630,1738348248379,-616.52,0.00017394,2]
[351134631,1738348248389,-1010.98,0.00017394,2]
[351134632,1738348248399,-611.99,0.00017394,2]
[351134633,1738348248409,-1917.23,0.00017394,2]
[351134634,1738348248421,-345.181563,0.00017394,2]
[351134635,1738348248430,-1746.14,0.00017394,2]
[351134636,1738348248440,-1127.11,0.00017394,2]
[351134637,1738348248450,-957.27,0.00017394,2]
[351134638,1738348248459,-683.39,0.00017394,2]
[351134639,1738348248469,-834.53,0.00017394,2]
[351134640,1738348248479,-500.0,0.00017394,2]
[351134641,1738348248490,-3304.95,0.00017394,2]
[351134642,1738348248501,-500.0,0.00017394,2]
[351134643,1738348248511,-446.25446286,0.00017394,2]
[351134644,1738348248521,-1375.96,0.00017394,2]
[351134645,1738348248531,-1152.1,0.00017394,2]
[351134646,1738348248541,-1117.85,0.00017394,2]
[351134647,1738348248551,-637.73,0.00017394,2]
[351134648,1738348248561,-1174.79,0.00017394,2]
[351134649,1738348248572,-861.45,0.00017394,2]
[351134650,1738348248582,-1552.68,0.00017394,2]
[351134651,1738348248592,-5050.15,0.00017394,2]
[351134652,1738348248602,-1714.15,0.00017394,2]
[351134653,1738348248612,-970.54,0.00017394,2]
[351134654,1738348248621,-974.2,0.00017394,2]
[351134655,1738348248631,-2977.2,0.00017394,2]
[351134656,1738348248641,-2472.78,0.00017394,2]
[351134657,1738348248651,-2130.65,0.00017394,2]
[351134658,1738348248662,-2310.79,0.00017394,2]
[351134659,1738348248672,-3082.33,0.00017394,2]
[351134660,1738348248682,-1236.46,0.00017394,2]
[351134661,1738348248691,-500.0,0.00017394,2]
[351134662,1738348248702,-1531.95,0.00017394,2]
[351134663,1738348248711,-1897.38,0.00017394,2]
[351134664,1738348248721,-470.66056702,0.00017394,2]
[351134665,1738348248731,-565.22,0.00017394,2]
[351134666,1738348248742,-500.0,0.00017394,2]
[351134667,1738348248752,-4150.61,0.00017394,2]
[351134668,1738348248762,-4363.87,0.00017394,2]
[351134669,1738348248772,-756.18395261,0.00017394,30]
[351134670,1738348248782,-500.0,0.00017394,2]
[351134671,1738348248792,-977.31,0.00017394,2]
[351134672,1738348248801,-500.0,0.00017394,2]
[351134673,1738348248811,-500.0,0.00017394,2]
[351134674,1738348248821,-500.0,0.00017394,2]
[351134675,1738348248831,-755.3,0.00017394,2]
[351134676,1738348248841,-224.22277575,0.00017394,2]
[351134677,1738348248851,-500.0,0.00017394,2]
[351134678,1738348248862,-1593.71,0.00017394,2]
[351134679,1738348248871,-657.65,0.00017395,2]
[351134680,1738348248881,-500.0,0.00017395,2]
[351134681,1738348248891,-500.0,0.00017395,2]
[351134682,1738348248900,-500.0,0.00017395,2]
[351134683,1738348248913,-500.0,0.00017395,2]
[351134684,1738348248923,-500.0,0.00017395,2]
[351134685,1738348248933,-500.0,0.00017395,2]
[351134686,1738348248944,-500.0,0.00017395,2]
[351134687,1738348248954,-500.0,0.00017395,2]
[351134688,1738348248963,-500.0,0.00017395,2]
[351134689,1738348248973,-500.0,0.00017395,2]
[351134690,1738348248983,-500.0,0.00017395,2]
[351134691,1738348248993,-772.66,0.00017395,2]
[351134692,1738348249003,-611.20549895,0.00017395,2]
[351134693,1738348249012,-500.0,0.00017395,2]
[351134694,1738348249022,-500.0,0.00017395,2]
[351134695,1738348249032,-500.0,0.00017395,2]
[351134696,1738348249041,-500.0,0.00017395,2]
[351134697,1738348249051,-500.0,0.00017395,2]
[351134698,1738348249061,-500.0,0.00017395,2]
[351134699,1738348249071,-606.93,0.00017395,2]
[351134700,1738348249080,-500.0,0.00017395,2]
[351134701,1738348249090,-522.94,0.00017395,2]
[351134702,1738348249100,-500.0,0.00017395,2]
[351134703,1738348249110,-500.0,0.00017395,2]
[351134704,1738348249120,-691.72,0.00017395,2]
[351134705,1738348249131,-694.08,0.00017395,2]
[351134706,1738348249341,-500.0,0.00017395,2]
[351134707,1738348249351,-566.43774806,0.00017395,2]
[351134708,1738348249361,-500.0,0.00017395,2]
[351134709,1738348249370,-622.01,0.00017395,2]
[351134710,1738348249379,-500.0,0.00017395,2]
[351134711,1738348249390,-500.0,0.00017395,2]
[351134712,1738348249400,-500.0,0.00017395,2]
[351134713,1738348249412,-500.0,0.00017395,2]
[351134714,1738348249422,-500.0,0.00017395,2]
[351134715,1738348249432,-799.89,0.00017395,2]
[351134716,1738348249442,-500.0,0.00017395,2]
[351134717,1738348249451,-666.3,0.00017395,2]
[351134718,1738348249461,-500.0,0.00017395,2]
[351134719,1738348249471,-500.0,0.00017395,2]
[351134720,1738348249481,-536.21,0.00017395,2]
[351134721,1738348249494,-500.0,0.00017395,2]
[351134722,1738348249504,-872.1,0.00017395,2]
[351134723,1738348249514,-1030.96,0.00017395,2]
[351134724,1738348249523,-544.21,0.00017395,2]
[351134725,1738348249534,-500.0,0.00017395,2]
[351134726,1738348249544,-1315.77,0.00017395,2]
[351134727,1738348249554,-500.0,0.00017395,2]
[351134728,1738348249564,-4715.16,0.00017395,2]
[351134729,1738348249575,-500.0,0.00017395,2]
[351134730,1738348249584,-993.3,0.00017395,2]
[351134731,1738348249594,-2605.9,0.00017395,2]
[351134732,1738348249603,-4721.91,0.00017395,2]
[351134733,1738348249612,-500.0,0.00017395,2]
[351134734,1738348249622,-2283.47,0.00017395,2]
[351134735,1738348249631,-939.45,0.00017395,2]
[351134736,1738348249641,-2389.08,0.00017395,2]
[351134737,1738348249650,-500.0,0.00017395,2]
[351134738,1738348249662,-500.0,0.00017395,2]
[351134739,1738348249672,-557.93,0.00017395,2]
[351134740,1738348249681,-965.04,0.00017395,2]
[351134741,1738348249692,-2395.63,0.00017395,2]
[351134742,1738348249701,-1060.87,0.00017395,2]
[351134743,1738348249711,-1276.49,0.00017395,2]
[351134744,1738348249720,-500.0,0.00017395,2]
[351134745,1738348249730,-500.0,0.00017395,2]
[351134746,1738348249739,-500.0,0.00017395,2]
[351134747,1738348249748,-500.0,0.00017395,2]
[351134748,1738348249758,-500.0,0.00017395,2]
[351134749,1738348249768,-973.6,0.00017395,2]
[351134750,1738348249777,-500.0,0.00017395,2]
[351134751,1738348249788,-870.13,0.00017395,2]
[351134752,1738348249798,-500.0,0.00017395,2]
[351134753,1738348249807,-397.88937472,0.00017396,2]
[351134754,1738348249817,-500.0,0.00017396,2]
[351134755,1738348249826,-515.63870382,0.00017396,2]
[351134756,1738348249835,-500.0,0.00017396,2]
[351134757,1738348249844,-510.61,0.00017396,2]
[351134758,1738348249854,-500.0,0.00017396,2]
[351134759,1738348249863,-500.0,0.00017396,2]
[351134760,1738348249873,-500.0,0.00017396,2]
[351134761,1738348249886,-500.0,0.00017396,2]
[351134762,1738348249898,-500.0,0.00017396,2]
[351134763,1738348249907,-500.0,0.00017396,2]
[351134764,1738348249920,-500.0,0.00017396,2]
[351134765,1738348249929,-500.0,0.00017396,2]
[351134766,1738348249939,-500.0,0.00017396,2]
[351134767,1738348249948,-500.0,0.00017396,2]
[351134768,1738348249957,-500.0,0.00017396,2]
[351134769,1738348249967,-500.0,0.00017396,2]
[351134770,1738348249976,-505.28967999,0.00017396,2]
[351134771,1738348249985,-500.0,0.00017396,2]
[351134772,1738348249995,-500.0,0.00017396,2]
[351134773,1738348250004,-509.50230113,0.00017396,2]
[351134774,1738348250013,-500.0,0.00017396,2]
[351134775,1738348250022,-509.20636107,0.00017396,2]
[351134776,1738348250032,-500.0,0.00017396,2]
[351134777,1738348250041,-500.0,0.00017396,2]
[351134778,1738348250051,-500.0,0.00017396,2]
[351134779,1738348250060,-500.0,0.00017396,2]
[351134780,1738348250070,-1455.79,0.00017397,2]
[351134781,1738348250079,-686.9,0.00017397,2]
[351134782,1738348250088,-500.0,0.00017397,2]
[351134783,1738348250098,-500.0,0.00017397,2]
[351134784,1738348250107,-2551.27,0.00017397,2]
[351134785,1738348250116,-1359.74,0.00017397,2]
[351134786,1738348250126,-3164.08,0.00017397,2]
[351134787,1738348250135,-1771.52,0.00017397,2]
[351134788,1738348250144,-500.0,0.00017397,2]
[351134789,1738348250154,-3352.95,0.00017397,2]
[351134790,1738348250165,-1723.08,0.00017397,2]
[351134791,1738348250175,-500.0,0.00017397,2]
[351134792,1738348250185,-904.61,0.00017397,2]
[351134793,1738348250194,-3205.13,0.00017397,2]
[351134794,1738348250204,-2877.99,0.00017397,2]
[351134795,1738348250213,-2087.9,0.00017397,2]
[351134796,1738348250222,-500.0,0.00017397,2]
[351134797,1738348250231,-500.0,0.00017397,2]
[351134798,1738348250241,-2031.19,0.00017397,2]
[351134799,1738348250250,-1464.79,0.00017397,2]
[351134800,1738348250259,-500.0,0.00017397,2]
[351134801,1738348250269,-7094.67,0.00017397,2]
[351134802,1738348250278,-846.73,0.00017397,2]
[351134803,1738348250288,-500.0,0.00017397,2]
[351134804,1738348250298,-1572.93,0.00017397,2]
[351134805,1738348250307,-200.9,0.000174,2]
[351134806,1738348250317,-957.2619,0.00017432,2]
[351134807,1738348250326,-2601.54408188,0.00017478,2]
[351134808,1738348250336,-1725.08254482,0.00017478,2]
[351134809,1738348250346,-250460.72985747,0.00017479,2]
[351134810,1738348250355,-250460.72985747,0.00017482,2]
[351134811,1738348250367,-149342.44945681,0.00017484,2]
[351134812,1738348250378,-200.0,0.00017487,2]
[351134813,1738348250388,-1167.08484391,0.00017488,2]
[351134814,1738348250399,-216.97278094,0.00017492,2]
[351134815,1738348250408,-3857.06111452,0.00017494,2]
[351134816,1738348250421,-36450.03111063,0.00017495,2]
[351134817,1738348250430,-428901.79407865,0.00017497,2]
[351134818,1738348250440,-900.0,0.000175,2]
[351134819,1738348250450,-900.0,0.000175,2]
[351134820,1738348250459,-900.0,0.000175,2]
[351134821,1738348250470,-900.0,0.000175,2]
[351134822,1738348250482,-900.0,0.000175,2]
[351134823,1738348250496,-900.0,0.000175,2]
[351134824,1738348250509,-900.0,0.000175,2]
[351134825,1738348250518,-900.0,0.000175,2]
[351134826,1738348250527,-900.0,0.000175,2]
[351134827,1738348250537,-900.0,0.000175,2]
[351134828,1738348250548,-216.97278094,0.000175,2]
[351134829,1738348250557,-149342.44945681,0.00017501,2]
[351134830,1738348250567,-2601.54408188,0.00017503,2]
[351134831,1738348250576,-1167.08484391,0.00017506,2]
[351134832,1738348250586,-2746.93568275,0.00017507,2]
[351134833,1738348250595,-22844.1499953,0.00017507,2]
[351134834,1738348250605,-36450.03111063,0.00017511,2]
[351134835,1738348250614,-15143.46899965,0.00017512,2]
[351134836,1738348250623,-1167.08484391,0.00017512,2]
[351134837,1738348250632,-2746.93568275,0.00017514,2]
[351134838,1738348250642,-22614.89181374,0.00017515,2]
[351134839,1738348250652,-2000.0,0.00017515,2]
[351134840,1738348250664,-200.0,0.00017515,2]
[351134841,1738348250674,-900.0,0.00017515,2]
[351134842,1738348250683,-900.0,0.00017515,2]
[351134843,1738348250692,-900.0,0.00017515,2]
[351134844,1738348250702,-900.0,0.00017515,2]
[351134845,1738348250711,-900.0,0.00017515,2]
[351134846,1738348250720,-900.0,0.00017515,2]
[351134847,1738348250729,-900.0,0.00017515,2]
[351134848,1738348250739,-1101.12003487,0.00017516,2]
[351134849,1738348250748,-250460.72985747,0.00017516,2]
[351134850,1738348250758,-200.0,0.00017521,2]
[351134851,1738348250767,-1153.16590249,0.00017521,2]
[351134852,1738348250777,-76767.44055586,0.00017521,2]
[351134853,1738348250787,-239.40124393,0.00017524,2]
[351134854,1738348250796,-36450.03111063,0.00017524,2]
[351134855,1738348250806,-275139.098169,0.00017529,2]
[351134856,1738348250815,-558.19316953,0.0001753,2]
[351134857,1738348250824,-500.0,0.0001753,2]
[351134858,1738348250834,-297.90694591,0.0001753,2]
[351134859,1738348250844,-500.0,0.0001753,2]
[351134860,1738348250853,-500.0,0.0001753,2]
[351134861,1738348250862,-500.0,0.0001753,2]
[351134862,1738348250872,-500.0,0.0001753,2]
[351134863,1738348250883,-518.64787742,0.0001753,2]
[351134864,1738348250893,-500.0,0.0001753,2]
[351134865,1738348250903,-480.36140846,0.0001753,2]
[351134866,1738348250916,-500.0,0.0001753,2]
[351134867,1738348250925,-500.0,0.0001753,2]
[351134868,1738348250935,-500.0,0.0001753,2]
[351134869,1738348250944,-484.75525471,0.0001753,2]
[351134870,1738348250953,-500.0,0.0001753,2]
[351134871,1738348250963,-511.62015683,0.0001753,2]
[351134872,1738348250973,-500.0,0.0001753,2]
[351134873,1738348250982,-500.0,0.0001753,2]
[351134874,1738348250992,-500.0,0.0001753,2]
[351134875,1738348251001,-500.0,0.0001753,2]